bitfinex/quotes_BTCUSD_20240723
["timestamp","ask_amount","ask_price","bid_price","bid_amount"]
[1721757409005,0.0019,66009.0,66008.0,2.27372113]
[1721757410147,0.0019,66009.0,66008.0,2.29672113]
[1721757410372,0.0019,66009.0,66008.0,2.36908358]
[1721757411175,0.03456033,66009.0,66008.0,2.36908358]
[1721757411376,0.0019,66009.0,66008.0,2.36908358]
[1721757412378,0.0019,66009.0,66008.0,2.36880228]
[1721757412986,0.03456033,66009.0,66008.0,0.87045383]
[1721757413117,0.03456033,66009.0,66008.0,1.17344683]
[1721757413705,0.03456033,66009.0,66008.0,1.14544683]
[1721757413952,0.03456033,66009.0,66008.0,1.15944683]
[1721757414156,0.03456033,66009.0,66008.0,1.31740948]
[1721757414357,0.03456033,66009.0,66008.0,1.30340948]
[1721757414528,0.03456033,66009.0,66008.0,1.30640948]
[1721757414929,0.22116033,66009.0,66008.0,0.41496483]
[1721757415226,0.22116033,66009.0,66008.0,0.40702385]
[1721757415433,0.23709043,66009.0,66008.0,0.40667032]
[1721757415821,0.23689043,66009.0,66008.0,0.40667032]
[1721757418619,0.23689043,66009.0,66008.0,0.40647649]
[1721757420510,0.22096033,66009.0,66008.0,0.40647649]
[1721757420953,0.23689043,66009.0,66008.0,0.40647649]
[1721757421787,0.23689043,66009.0,66008.0,0.40621029]
[1721757421988,0.23689043,66009.0,66008.0,0.52340808]
[1721757424513,0.23689043,66009.0,66008.0,0.40621341]
[1721757424912,0.23689043,66009.0,66008.0,0.44943991]
[1721757425093,0.23773043,66009.0,66008.0,0.86166456]
[1721757425341,0.23773043,66009.0,66008.0,0.55867156]
[1721757425549,0.23773043,66009.0,66008.0,0.67593413]
[1721757426368,0.23773043,66009.0,66008.0,0.52443813]
[1721757426770,0.23773043,66009.0,66008.0,0.67593413]
[1721757427570,0.16133043,66009.0,66008.0,0.67593413]
[1721757427772,0.0660701,66009.0,66008.0,1.28192013]
[1721757428006,0.0660701,66009.0,66008.0,1.17268848]
[1721757428189,0.05014,66009.0,66008.0,1.28183578]
[1721757428371,0.08280033,66009.0,66008.0,1.28183578]
[1721757428665,0.08280033,66009.0,66008.0,0.55858721]
[1721757428868,0.09866937,66009.0,66008.0,0.55858721]
[1721757429090,0.09866937,66009.0,66008.0,0.86158021]
[1721757429701,0.08280033,66009.0,66008.0,0.86158021]
[1721757429900,0.09866937,66009.0,66008.0,0.86158021]
[1721757430757,0.09866937,66009.0,66008.0,1.03354286]
[1721757430984,0.09866937,66009.0,66008.0,0.73054986]
[1721757431184,0.99493937,66009.0,66008.0,0.052924]
[1721757431994,0.38896337,66009.0,66008.0,0.052924]
[1721757432399,0.69195137,66009.0,66008.0,0.025924]
[1721757432528,0.69195137,66009.0,66008.0,0.027924]
[1721757432724,0.69195137,66009.0,66008.0,0.040924]
[1721757433489,0.99493937,66009.0,66008.0,0.040924]
[1721757434425,0.69195137,66009.0,66008.0,0.040924]
[1721757435460,0.99493937,66009.0,66008.0,0.040924]
[1721757435665,0.69195137,66009.0,66008.0,0.040924]
[1721757436275,0.69195137,66009.0,66008.0,0.15119655]
[1721757436686,0.23746937,66009.0,66008.0,0.15119655]
[1721757437098,0.05106937,66009.0,66008.0,1.09381812]
[1721757437301,0.00254,66009.0,66008.0,1.09381812]
[1721757437473,0.00254,66009.0,66008.0,1.54401112]
[1721757437704,0.00254,66009.0,66008.0,1.54433758]
[1721757437917,0.00254,66009.0,66008.0,1.24149026]
[1721757438065,0.03520033,66009.0,66008.0,1.17679026]
[1721757438473,0.00254,66009.0,66008.0,1.17679026]
[1721757439044,0.00254,66009.0,66008.0,1.47978326]
[1721757440070,0.03520033,66009.0,66008.0,1.47978326]
[1721757440523,0.03520033,66009.0,66008.0,1.4646636]
[1721757440932,0.03520033,66009.0,66008.0,1.4685332]
[1721757441790,0.00254,66009.0,66008.0,1.4685332]
[1721757442601,0.03520033,66009.0,66008.0,1.0830402]
[1721757443058,0.03520033,66009.0,66008.0,0.7800472]
[1721757443289,0.03520033,66009.0,66008.0,1.0830402]
[1721757443412,0.03520033,66009.0,66008.0,0.7800472]
[1721757443817,0.03520033,66009.0,66008.0,1.0830402]
[1721757444022,0.03520033,66009.0,66008.0,1.23045403]
[1721757446325,0.03520033,66009.0,66008.0,0.92746103]
[1721757446528,0.03520033,66009.0,66008.0,1.23045403]
[1721757447053,0.03520033,66009.0,66008.0,0.21094391]
[1721757447254,0.98267033,66009.0,66008.0,0.15591189]
[1721757447465,0.9985548,66009.0,66008.0,0.15591189]
[1721757448917,1.07204422,66009.0,66008.0,0.15591189]
[1721757449289,1.420373,66009.0,66008.0,0.15591189]
[1721757450113,1.07204422,66009.0,66008.0,0.15591189]
[1721757450348,0.46606822,66009.0,66008.0,0.15621366]
[1721757450508,0.76905622,66009.0,66008.0,0.15621366]
[1721757451134,1.07204422,66009.0,66008.0,0.15621366]
[1721757451351,0.3925788,66009.0,66008.0,0.15621366]
[1721757451552,0.6955668,66009.0,66008.0,0.15621366]
[1721757452539,0.9985548,66009.0,66008.0,0.15621366]
[1721757453073,0.6955668,66009.0,66008.0,0.15621366]
[1721757453696,0.6955668,66009.0,66008.0,0.15654145]
[1721757454606,0.3925788,66009.0,66008.0,0.15654145]
[1721757454777,0.2410848,66009.0,66008.0,0.15654145]
[1721757454978,0.3925788,66009.0,66008.0,0.15654145]
[1721757455424,0.1597848,66009.0,66008.0,0.15654145]
[1721757455807,0.1597848,66009.0,66008.0,0.17954145]
[1721757456186,0.20518047,66009.0,66008.0,0.17954145]
[1721757456616,0.1597848,66009.0,66008.0,0.063924]
[1721757456847,0.1597848,66009.0,66008.0,0.32941688]
[1721757456848,0.20518959,66009.0,66008.0,0.32941688]
[1721757457003,0.0986848,66009.0,66008.0,0.32941688]
[1721757457203,0.0986848,66009.0,66008.0,0.63240988]
[1721757457398,0.0986848,66009.0,66008.0,0.32941688]
[1721757458285,0.0986848,66009.0,66008.0,0.42295867]
[1721757459112,0.06602447,66009.0,66008.0,1.17596458]
[1721757459315,0.0986848,66009.0,66008.0,1.08242279]
[1721757459514,0.0986848,66009.0,66008.0,1.16082279]
[1721757459515,0.08280033,66009.0,66008.0,1.16082279]
[1721757459794,0.08280033,66009.0,66008.0,1.19378856]
[1721757459926,0.08280033,66009.0,66008.0,1.31110907]
[1721757460544,0.08280033,66009.0,66008.0,1.16414642]
[1721757460740,0.08280033,66009.0,66008.0,1.08574642]
[1721757461642,0.03520033,66009.0,66008.0,1.38873942]
[1721757462991,0.03520033,66009.0,66008.0,1.27141891]
[1721757463204,0.03520033,66009.0,66008.0,1.38842813]
[1721757464384,0.03520033,66009.0,66008.0,1.08543513]
[1721757464821,0.03520033,66009.0,66008.0,1.09347026]
[1721757464985,0.03520033,66009.0,66008.0,1.14228192]
[1721757465772,0.03520033,66009.0,66008.0,1.09347026]
[1721757466096,0.03520033,66009.0,66008.0,0.97646104]
[1721757466294,0.03520033,66009.0,66008.0,1.09322941]
[1721757467545,0.03520033,66009.0,66008.0,0.79023641]
[1721757467739,0.03520033,66009.0,66008.0,0.32771228]
[1721757467947,0.08280033,66009.0,66008.0,0.32771228]
[1721757468157,0.32364189,66009.0,66008.0,0.32771228]
[1721757468756,0.17214789,66009.0,66008.0,0.32771228]
[1721757469137,0.32364189,66009.0,66008.0,0.32771228]
[1721757469337,0.17214789,66009.0,66008.0,0.32769446]
[1721757470673,0.32364189,66009.0,66008.0,0.32769446]
[1721757470875,0.17214789,66009.0,66008.0,0.32769446]
[1721757471228,0.17214789,66009.0,66008.0,0.47919046]
[1721757471590,0.17214789,66009.0,66008.0,0.32769446]
[1721757472705,0.17214789,66009.0,66008.0,0.32738863]
[1721757472921,0.01839814,66009.0,66008.0,0.32738863]
[1721757473119,0.01839814,66009.0,66008.0,1.57055979]
[1721757473267,0.01839814,66009.0,66008.0,1.53016363]
[1721757473469,0.00254,66009.0,66008.0,1.67510553]
[1721757473888,0.00254,66009.0,66008.0,1.66266472]
[1721757474091,0.00254,66009.0,66008.0,1.80962737]
[1721757474308,0.07666934,66020.0,66019.0,0.06730075]
[1721757474309,0.00854,66020.0,66019.0,0.06730075]
[1721757474513,0.00854,66020.0,66019.0,2.03445755]
[1721757474723,0.01054,66029.0,66028.0,0.42115075]
[1721757474932,0.01054,66029.0,66028.0,1.77161847]
[1721757475175,0.01054,66029.0,66028.0,2.43050026]
[1721757475331,0.01054,66029.0,66028.0,2.51780026]
[1721757475574,0.01054,66029.0,66028.0,2.4258171]
[1721757475767,0.01054,66029.0,66028.0,2.70710295]
[1721757475966,0.01054,66029.0,66028.0,2.70910295]
[1721757476272,0.01054,66029.0,66028.0,2.72310295]
[1721757476512,0.01054,66029.0,66028.0,2.83990295]
[1721757477501,0.01054,66029.0,66028.0,2.85390295]
[1721757477758,0.01054,66029.0,66028.0,2.86790295]
[1721757478217,0.01054,66029.0,66028.0,3.15680395]
[1721757478718,0.01054,66029.0,66028.0,3.17080395]
[1721757478965,0.01054,66029.0,66028.0,3.18461947]
[1721757479211,0.00854,66041.0,66040.0,1.353371]
[1721757479436,0.00854,66041.0,66040.0,2.19774512]
[1721757479681,0.00854,66041.0,66040.0,2.24711491]
[1721757480642,0.00854,66041.0,66040.0,1.78485891]
[1721757481119,0.00854,66041.0,66040.0,1.75188912]
[1721757481358,0.00854,66041.0,66040.0,1.89885177]
[1721757482067,0.00854,66041.0,66040.0,1.91285054]
[1721757482568,0.00854,66041.0,66040.0,1.88485054]
[1721757482789,0.00854,66041.0,66040.0,1.91285054]
[1721757483253,0.007832,66041.0,66040.0,1.91285054]
[1721757483942,0.007832,66041.0,66040.0,2.37160654]
[1721757484381,0.007832,66041.0,66040.0,2.41781249]
[1721757485087,0.007832,66041.0,66040.0,2.29210551]
[1721757485290,0.007832,66041.0,66040.0,2.41780371]
[1721757485491,0.007832,66041.0,66040.0,2.43889851]
[1721757485814,0.007832,66041.0,66040.0,2.48510446]
[1721757486175,0.007832,66041.0,66040.0,3.62174451]
[1721757486329,0.007832,66041.0,66040.0,3.62374451]
[1721757486718,0.007832,66041.0,66040.0,3.66995046]
[1721757487127,0.007832,66041.0,66040.0,2.79830914]
[1721757487347,0.00140083,66041.0,66040.0,3.81810914]
[1721757487592,0.0147754,66045.0,66044.0,1.97136475]
[1721757487787,0.0147754,66045.0,66044.0,2.38064189]
[1721757488027,0.0147754,66045.0,66044.0,2.42836592]
[1721757488272,0.0147754,66045.0,66044.0,1.70290254]
[1721757488500,0.0147754,66045.0,66044.0,1.58627851]
[1721757488722,0.0147754,66045.0,66044.0,1.63155139]
[1721757488943,0.0147754,66045.0,66044.0,1.65955139]
[1721757489164,0.0147754,66045.0,66044.0,0.42957231]
[1721757489381,0.0147754,66045.0,66044.0,0.41243391]
[1721757489583,0.0147754,66045.0,66044.0,1.03208991]
[1721757489584,0.02611495,66045.0,66044.0,1.03208991]
[1721757489868,0.0476,66045.0,66044.0,1.03208991]
[1721757490135,0.002,66049.0,66048.0,1.31203575]
[1721757490342,0.03266033,66061.0,66048.0,1.31203575]
[1721757490343,0.03266033,66061.0,66050.0,1.09240075]
[1721757490544,0.03266033,66061.0,66050.0,2.7209324]
[1721757490785,0.03266033,66061.0,66050.0,2.77018823]
[1721757490997,0.03266033,66061.0,66050.0,3.24295088]
[1721757491451,0.03266033,66061.0,66050.0,3.24292073]
[1721757491789,0.03266033,66061.0,66050.0,4.74292073]
[1721757491995,0.03266033,66061.0,66050.0,4.75692073]
[1721757492993,0.03266033,66061.0,66050.0,4.77092073]
[1721757494658,0.03266033,66059.0,66050.0,4.48978397]
[1721757495117,0.03266033,66059.0,66050.0,4.04841914]
[1721757495118,0.0611,66057.0,66050.0,4.04841914]
[1721757495335,0.03266033,66054.0,66050.0,1.72107914]
[1721757495766,0.03266033,66054.0,66050.0,1.68841914]
[1721757496377,0.03266033,66055.0,66050.0,1.63841914]
[1721757496505,0.0611,66057.0,66050.0,1.68841914]
[1721757496506,0.03266033,66054.0,66050.0,1.68841914]
[1721757496703,0.03266033,66055.0,66050.0,1.68841914]
[1721757496912,0.151364,66066.0,66050.0,1.68841914]
[1721757496913,0.00734265,66071.0,66068.0,0.693728]
[1721757497114,0.00734265,66071.0,66070.0,1.013173]
[1721757497322,0.00734265,66071.0,66070.0,1.14397689]
[1721757497535,0.00734265,66071.0,66070.0,0.879772]
[1721757497738,0.00734265,66071.0,66070.0,0.477063]
[1721757497739,0.10560298,66071.0,66070.0,0.477063]
[1721757497943,0.08261104,66071.0,66070.0,0.023]
[1721757498193,0.03266033,66065.0,66064.0,0.025794]
[1721757498404,0.03266033,66065.0,66064.0,0.62412391]
[1721757498599,0.03230633,66065.0,66064.0,0.32138791]
[1721757498806,0.10579575,66070.0,66069.0,0.002794]
[1721757499014,0.03230633,66070.0,66069.0,0.023]
[1721757499548,0.03230633,66069.0,66068.0,0.023]
[1721757499718,0.03230633,66069.0,66068.0,0.17001991]
[1721757500074,0.07294265,66071.0,66062.0,0.002794]
[1721757500075,0.03230633,66063.0,66062.0,0.002794]
[1721757500277,0.03230633,66063.0,66059.0,0.002794]
[1721757500278,0.16810633,66063.0,66059.0,0.002794]
[1721757500523,0.16810633,66063.0,66059.0,0.14981391]
[1721757500524,0.10579575,66060.0,66059.0,0.14981391]
[1721757500756,0.10579575,66060.0,66059.0,0.14701991]
[1721757502043,0.10579575,66060.0,66059.0,0.17001991]
[1721757502396,0.10579575,66060.0,66059.0,0.17801991]
[1721757503209,0.10579575,66060.0,66059.0,0.30370944]
[1721757503417,4e-05,66075.0,66070.0,1.059481]
[1721757503616,4e-05,66075.0,66070.0,1.4910528]
[1721757503795,4e-05,66075.0,66070.0,0.17001991]
[1721757503796,0.03964898,66071.0,66070.0,0.17001991]
[1721757504170,0.03964898,66071.0,66070.0,0.29567762]
[1721757504496,0.03964898,66071.0,66070.0,0.14865771]
[1721757504720,0.03230633,66063.0,66057.0,0.302768]
[1721757504877,0.03230633,66063.0,66062.0,0.29569628]
[1721757505887,0.04027605,66063.0,66062.0,0.29569628]
[1721757506108,0.04027605,66063.0,66062.0,0.53345241]
[1721757506109,0.00796972,66063.0,66062.0,0.53345241]
[1721757506306,0.07348942,66066.0,66062.0,0.54745241]
[1721757506513,0.00796972,66065.0,66063.0,0.29849028]
[1721757506716,0.00796972,66065.0,66064.0,0.12567637]
[1721757506928,0.00796972,66065.0,66064.0,0.2957]
[1721757507774,0.04027605,66065.0,66064.0,0.2957]
[1721757507951,0.00796972,66065.0,66064.0,0.3097]
[1721757508423,0.00796972,66065.0,66064.0,0.461068]
[1721757508808,0.00796972,66065.0,66064.0,0.3097]
[1721757509226,0.04027605,66065.0,66064.0,0.33879297]
[1721757510189,0.04027605,66065.0,66064.0,0.49016097]
[1721757510415,0.04027605,66065.0,66064.0,0.33879404]
[1721757511375,0.86280605,66065.0,66064.0,0.16877413]
[1721757511589,1.16553805,66065.0,66064.0,0.04309297]
[1721757511825,0.86280605,66065.0,66064.0,0.04309297]
[1721757512056,0.86280605,66065.0,66064.0,0.028]
[1721757512802,0.86280605,66065.0,66064.0,0.014]
[1721757512803,0.86270605,66065.0,66064.0,0.014]
[1721757512998,0.86270605,66065.0,66064.0,0.15269041]
[1721757513239,0.86270605,66065.0,66064.0,0.027]
[1721757513498,0.86270605,66065.0,66064.0,0.13869063]
[1721757513736,0.86270605,66065.0,66064.0,0.015]
[1721757515289,1.16543805,66065.0,66064.0,0.015]
[1721757516755,1.16547805,66065.0,66064.0,0.015]
[1721757517828,1.24817805,66065.0,66064.0,0.015]
[1721757518053,1.55091005,66065.0,66064.0,0.015]
[1721757518487,1.24817805,66065.0,66064.0,0.015]
[1721757521217,1.24817805,66065.0,66064.0,0.015913]
[1721757521455,1.24900805,66065.0,66064.0,0.015913]
[1721757524379,1.55174005,66065.0,66064.0,0.015913]
[1721757524588,1.24900805,66065.0,66064.0,0.015913]
[1721757525019,1.55174005,66065.0,66064.0,0.015913]
[1721757525219,1.24900805,66065.0,66064.0,0.015913]
[1721757525423,1.61969635,66065.0,66064.0,0.015913]
[1721757525636,1.31696435,66065.0,66064.0,0.015913]
[1721757525850,1.31697976,66065.0,66064.0,0.015913]
[1721757526054,1.36697976,66065.0,66064.0,0.015913]
[1721757526302,1.31697976,66065.0,66064.0,0.015913]
[1721757526508,1.61971176,66065.0,66064.0,0.015913]
[1721757526679,1.31697976,66065.0,66064.0,0.015913]
[1721757527026,1.36697976,66065.0,66064.0,0.015913]
[1721757527232,1.31697976,66065.0,66064.0,0.015913]
[1721757528308,1.24900805,66065.0,66064.0,0.015913]
[1721757529406,1.26573636,66065.0,66064.0,0.015913]
[1721757529567,1.26568636,66065.0,66064.0,0.015913]
[1721757529971,1.31568636,66065.0,66064.0,0.015913]
[1721757530377,2.01240092,66065.0,66064.0,0.015913]
[1721757530531,2.17220092,66065.0,66064.0,0.015913]
[1721757530726,2.24613291,66065.0,66064.0,0.015913]
[1721757530932,2.70460408,66065.0,66064.0,0.015913]
[1721757531584,3.16106948,66065.0,66064.0,0.015913]
[1721757531793,2.70540112,66065.0,66064.0,0.015913]
[1721757532011,2.69935816,66065.0,66064.0,0.015913]
[1721757532221,3.00209016,66065.0,66064.0,0.015913]
[1721757532426,3.00209016,66065.0,66064.0,0.002913]
[1721757532651,3.00209016,66065.0,66064.0,0.008913]
[1721757532852,3.00209016,66065.0,66064.0,0.002913]
[1721757533047,3.00209016,66065.0,66050.0,0.025]
[1721757533048,0.23370433,66051.0,66050.0,0.025]
[1721757533262,2.12069766,66051.0,66050.0,0.04009297]
[1721757533508,2.12855748,66051.0,66050.0,0.04009297]
[1721757533725,2.43135348,66051.0,66050.0,0.04009297]
[1721757534068,2.57831613,66051.0,66050.0,0.04009297]
[1721757534529,2.57831613,66051.0,66050.0,0.04709297]
[1721757535220,2.67931613,66051.0,66050.0,0.04709297]
[1721757535455,2.57931613,66051.0,66050.0,0.04709297]
[1721757535695,2.22955748,66051.0,66050.0,0.04709297]
[1721757536167,1.69094815,66051.0,66050.0,0.04709297]
[1721757536399,1.7814247,66051.0,66050.0,0.04709297]
[1721757536635,1.65764687,66051.0,66050.0,0.04709297]
[1721757536874,1.61078271,66051.0,66050.0,0.04709297]
[1721757537108,1.56554815,66051.0,66050.0,0.04709297]
[1721757537348,1.61078252,66051.0,66050.0,0.04709297]
[1721757537583,1.56554815,66051.0,66050.0,0.04709297]
[1721757538274,1.56554815,66051.0,66050.0,0.032]
[1721757538503,1.61077642,66051.0,66050.0,0.032]
[1721757538732,1.56554815,66051.0,66050.0,0.032]
[1721757538960,1.61077262,66051.0,66050.0,0.032]
[1721757540059,1.56554815,66051.0,66050.0,0.032]
[1721757540445,1.56554815,66051.0,66050.0,0.007]
[1721757540446,1.54054815,66051.0,66050.0,0.007]
[1721757540794,1.5487448,66051.0,66050.0,0.0045]
[1721757540967,1.59396927,66051.0,66050.0,0.0045]
[1721757541173,1.64396927,66051.0,66050.0,0.0045]
[1721757541374,1.5987448,66051.0,66050.0,0.0045]
[1721757541796,1.5487448,66051.0,66050.0,0.0045]
[1721757543339,1.94675633,66051.0,66050.0,0.0045]
[1721757543537,1.9015408,66051.0,66050.0,0.0045]
[1721757543960,1.9693641,66051.0,66050.0,0.0045]
[1721757544184,2.51918001,66051.0,66050.0,0.0045]
[1721757544412,2.69315671,66051.0,66050.0,0.0045]
[1721757544659,2.78857467,66051.0,66050.0,0.0045]
[1721757545115,2.84105598,66051.0,66050.0,0.0045]
[1721757545371,2.78757467,66051.0,66050.0,0.0045]
[1721757545602,0.76458133,66026.0,66025.0,0.002794]
[1721757545835,0.76458133,66026.0,66025.0,0.01509297]
[1721757546060,0.77222279,66026.0,66025.0,0.01509297]
[1721757546289,0.46931279,66026.0,66025.0,0.24541288]
[1721757546518,0.77222279,66026.0,66025.0,0.26841288]
[1721757547003,0.77222279,66026.0,66025.0,0.13539297]
[1721757547503,0.77222279,66026.0,66025.0,0.14939297]
[1721757549381,0.77222279,66026.0,66025.0,0.12639297]
[1721757550074,1.07513279,66026.0,66025.0,0.12639297]
[1721757551019,1.07513279,66026.0,66025.0,0.1113]
[1721757551966,1.07513279,66026.0,66025.0,0.028]
[1721757552342,1.39279789,66026.0,66025.0,0.028]
[1721757552573,1.59614279,66026.0,66025.0,0.028]
[1721757552904,1.59614279,66026.0,66025.0,0.014]
[1721757553520,1.59614279,66026.0,66017.0,0.0832]
[1721757553521,1.06762033,66018.0,66017.0,0.0832]
[1721757553892,1.06762033,66018.0,66017.0,0.01509297]
[1721757553893,1.37816748,66018.0,66017.0,0.01509297]
[1721757554093,1.42816748,66018.0,66017.0,0.01509297]
[1721757554338,1.81071448,66018.0,66017.0,0.01509297]
[1721757554945,1.81171448,66018.0,66017.0,0.02909297]
[1721757556193,1.81171448,66018.0,66017.0,0.03309297]
[1721757556523,1.91171448,66018.0,66017.0,0.03309297]
[1721757556730,2.20569704,66018.0,66017.0,0.03309297]
[1721757557337,2.05873439,66018.0,66017.0,0.018]
[1721757557544,1.50876748,66018.0,66017.0,0.018]
[1721757557748,1.50776748,66018.0,66017.0,0.004]
[1721757558163,1.50876748,66018.0,66017.0,0.004]
[1721757558416,1.06773233,66011.0,66010.0,0.01509297]
[1721757558812,1.07527267,66011.0,66010.0,0.01509297]
[1721757560048,1.07827267,66011.0,66010.0,0.01509297]
[1721757561341,1.07527267,66011.0,66010.0,0.01509297]
[1721757561557,1.07827267,66011.0,66010.0,0.01509297]
[1721757562038,1.38125167,66011.0,66010.0,0.01509297]
[1721757562417,1.38225167,66011.0,66010.0,0.02309297]
[1721757562852,1.37925167,66011.0,66010.0,0.02309297]
[1721757563774,1.38225167,66011.0,66010.0,0.008]
[1721757565030,1.37925167,66011.0,66010.0,0.008]
[1721757565232,1.06776433,66009.0,66008.0,0.000924]
[1721757565441,1.06776433,66009.0,66008.0,0.01601697]
[1721757565622,1.07515694,66009.0,66008.0,0.01601697]
[1721757567107,1.07615694,66009.0,66008.0,0.01601697]
[1721757568344,1.07715694,66009.0,66008.0,0.02601697]
[1721757568744,1.38014494,66009.0,66008.0,0.02601697]
[1721757569745,1.38014494,66009.0,66008.0,0.010924]
[1721757571347,1.07715694,66009.0,66008.0,0.010924]
[1721757571551,1.07715694,66009.0,66008.0,0.075224]
[1721757571913,1.07715694,66009.0,66008.0,0.150724]
[1721757577641,0.77416894,66009.0,66008.0,0.150724]
[1721757577850,0.47118094,66009.0,66008.0,0.150724]
[1721757580067,0.01669894,66009.0,66008.0,0.150724]
[1721757580245,0.01669894,66009.0,66008.0,0.1657964]
[1721757580450,0.01669894,66009.0,66008.0,0.47223991]
[1721757580655,0.01669894,66009.0,66008.0,0.77523291]
[1721757581079,0.01669894,66009.0,66008.0,1.07822591]
[1721757581080,0.002,66009.0,66008.0,1.07822591]
[1721757581288,0.002,66009.0,66008.0,1.16977193]
[1721757581521,0.002,66009.0,66008.0,1.31673458]
[1721757581522,0.001,66009.0,66008.0,1.31673458]
[1721757581763,0.00730633,66011.0,66010.0,0.592876]
[1721757582009,0.00730633,66011.0,66010.0,0.5665509]
[1721757582295,0.00730633,66011.0,66010.0,0.41458382]
[1721757582726,0.0146558,66011.0,66010.0,0.41458382]
[1721757583597,0.0146558,66011.0,66010.0,0.86905982]
[1721757584022,0.00730633,66011.0,66010.0,0.41458382]
[1721757584228,0.0146558,66011.0,66010.0,0.58007582]
[1721757584651,0.0146558,66011.0,66010.0,0.58707582]
[1721757586388,0.00734947,66011.0,66010.0,0.89005982]
[1721757586814,0.00730633,66012.0,66010.0,0.89005982]
[1721757586815,0.00730633,66012.0,66011.0,0.454468]
[1721757587020,0.00730633,66012.0,66011.0,0.71555885]
[1721757587234,0.0146558,66012.0,66011.0,0.41257985]
[1721757587937,0.0146558,66012.0,66011.0,0.26109085]
[1721757588161,0.1661428,66012.0,66011.0,0.26709085]
[1721757588408,0.1661428,66012.0,66011.0,0.19001991]
[1721757588617,0.1661428,66012.0,66011.0,0.28497081]
[1721757588833,0.0146558,66012.0,66011.0,0.28497081]
[1721757590076,0.0146558,66012.0,66011.0,0.1149509]
[1721757590077,0.54260722,66012.0,66011.0,0.1149509]
[1721757590295,1.14855722,66012.0,66011.0,0.1149509]
[1721757590723,0.7720928,66012.0,66011.0,0.1149509]
[1721757591483,0.00734947,66012.0,66011.0,0.7952647]
[1721757591685,0.00084,66018.0,66017.0,0.151476]
[1721757591879,0.00084,66018.0,66017.0,0.88166199]
[1721757592081,0.00084,66018.0,66017.0,1.00040459]
[1721757592310,0.00084,66018.0,66017.0,1.30335659]
[1721757592577,0.00084,66018.0,66017.0,2.15335659]
[1721757592782,0.00084,66018.0,66017.0,1.60630859]
[1721757592983,0.00084,66018.0,66017.0,1.85630859]
[1721757593314,0.00084,66018.0,66017.0,1.56335659]
[1721757593519,0.00084,66018.0,66017.0,1.50335659]
[1721757593718,0.00084,66018.0,66017.0,1.55335659]
[1721757593931,0.00084,66018.0,66017.0,1.56735659]
[1721757594179,0.00084,66018.0,66017.0,1.43461399]
[1721757594349,0.00084,66018.0,66017.0,0.42723399]
[1721757594350,0.00814633,66018.0,66017.0,0.42723399]
[1721757594555,0.00814633,66018.0,66017.0,0.44310412]
[1721757595143,0.53605575,66018.0,66017.0,0.22088421]
[1721757595990,0.53605575,66018.0,66017.0,0.10989297]
[1721757596544,0.53605575,66018.0,66017.0,0.09589297]
[1721757596746,0.53605575,66018.0,66017.0,0.10989297]
[1721757597122,0.15961933,66018.0,66017.0,0.20556895]
[1721757597462,0.15961933,66018.0,66017.0,0.19156895]
[1721757597688,0.15961933,66018.0,66017.0,0.19156657]
[1721757597886,0.46256633,66018.0,66017.0,0.20256657]
[1721757598317,0.46260633,66018.0,66017.0,0.20256657]
[1721757599116,0.00818633,66018.0,66017.0,0.37258648]
[1721757599559,0.15965933,66018.0,66017.0,0.37258648]
[1721757599969,0.00818633,66018.0,66017.0,0.37258648]
[1721757600436,0.15965933,66018.0,66017.0,0.37258648]
[1721757600742,0.46260633,66018.0,66017.0,0.20256657]
[1721757600958,0.76555333,66018.0,66017.0,0.12147963]
[1721757601158,1.13220033,66018.0,66017.0,0.025]
[1721757601703,1.06850033,66018.0,66017.0,0.025]
[1721757602322,0.76555333,66018.0,66017.0,0.011]
[1721757602565,0.76555333,66018.0,66010.0,0.151491]
[1721757602566,0.00730633,66011.0,66010.0,0.151491]
[1721757602722,0.00730633,66009.0,66008.0,0.1332256]
[1721757602933,0.00730633,66009.0,66008.0,0.19111752]
[1721757603122,0.00730633,66009.0,66008.0,0.36561352]
[1721757603323,0.00730633,66009.0,66008.0,0.66860652]
[1721757603760,0.00730633,66009.0,66008.0,0.41513288]
[1721757603915,0.00730633,66009.0,66008.0,0.52711944]
[1721757604963,0.00730633,66009.0,66008.0,0.64661944]
[1721757605768,0.00730633,66009.0,66008.0,1.09657509]
[1721757606118,0.00730633,66017.0,66014.0,0.295982]
[1721757606313,0.00730633,66015.0,66014.0,0.1445]
[1721757606467,0.15878633,66015.0,66014.0,0.26593624]
[1721757606850,0.46174733,66015.0,66014.0,0.1675]
[1721757607053,0.46174733,66015.0,66009.0,0.0768]
[1721757607054,0.454476,66010.0,66009.0,0.0768]
[1721757607334,0.15879833,66010.0,66009.0,0.17513959]
[1721757607931,0.46178233,66010.0,66009.0,0.17513959]
[1721757608137,0.15879833,66010.0,66009.0,0.17513959]
[1721757608344,0.00730633,66010.0,66009.0,0.49805022]
[1721757608554,0.00730633,66012.0,66010.0,0.151491]
[1721757608761,0.00730633,66012.0,66011.0,0.12413359]
[1721757608961,0.00730633,66012.0,66011.0,0.32150891]
[1721757609340,0.00730633,66012.0,66011.0,0.62448791]
[1721757609666,0.00730633,66014.0,66013.0,0.151485]
[1721757609899,0.00818633,66018.0,66016.0,0.151476]
[1721757610100,0.00730633,66014.0,66013.0,0.29850491]
[1721757610302,0.00730633,66015.0,66014.0,0.151483]
[1721757610475,0.00730633,66015.0,66014.0,0.29850291]
[1721757610612,0.00730633,66015.0,66014.0,0.31311991]
[1721757610812,0.15878633,66015.0,66014.0,0.24831991]
[1721757611222,0.15878633,66015.0,66014.0,0.1013]
[1721757611626,0.15878933,66014.0,66013.0,0.02909297]
[1721757611939,0.46175533,66014.0,66013.0,0.02909297]
[1721757612347,0.83062133,66014.0,66013.0,0.02909297]
[1721757612775,0.83062133,66014.0,66013.0,0.01509297]
[1721757613099,0.83062133,66014.0,66013.0,0.02909297]
[1721757613473,1.13358733,66014.0,66013.0,0.01509297]
[1721757613687,1.13358733,66014.0,66013.0,0.02909297]
[1721757614039,1.13358733,66014.0,66013.0,0.03609297]
[1721757614241,0.46175533,66014.0,66013.0,0.05054467]
[1721757614431,0.00730633,66014.0,66013.0,0.35037797]
[1721757614634,0.00730633,66014.0,66013.0,0.19189297]
[1721757615644,0.00730633,66014.0,66013.0,0.17789297]
[1721757615845,0.00730633,66014.0,66013.0,0.19089297]
[1721757616088,0.00730633,66014.0,66013.0,0.12839297]
[1721757616306,0.00730633,66014.0,66013.0,0.2183995]
[1721757616518,0.00730633,66014.0,66013.0,0.53090441]
[1721757616740,0.00730633,66014.0,66013.0,0.52890441]
[1721757616934,0.00730633,66014.0,66013.0,0.52052395]
[1721757617145,0.00730633,66014.0,66013.0,0.36903884]
[1721757617773,0.00730633,66014.0,66013.0,0.37200227]
[1721757618812,0.00730633,66014.0,66013.0,0.37200212]